fUSD/lending_fUSD_20251025
["ID","MTS","AMOUNT","RATE_DAILY","PERIOD"]
[392393215,1761425438612,-500.0,0.00033966,9]
[392393216,1761425438622,-165.06001651,0.00033966,9]
[392393217,1761425438631,-500.0,0.00033966,9]
[392393218,1761425438643,-517.54,0.00033966,9]
[392393219,1761425438652,-286.71498473,0.00033966,9]
[392393220,1761425438661,-500.0,0.00033966,9]
[392393221,1761425438670,-500.0,0.00033966,9]
[392393222,1761425438679,-500.0,0.00033966,9]
[392393223,1761425438688,-500.0,0.00033966,9]
[392393224,1761425438698,-500.0,0.00033966,9]
[392393225,1761425438707,-500.0,0.00033966,9]
[392393226,1761425438717,-153.79527824,0.00033966,9]
[392393227,1761425438726,-500.0,0.00033966,9]
[392393228,1761425438735,-942.51,0.00033966,9]
[392393229,1761425438745,-500.0,0.00033966,9]
[392393230,1761425438754,-500.0,0.00033966,9]
[392393231,1761425438763,-500.0,0.00033966,9]
[392393232,1761425438772,-500.0,0.00033966,9]
[392393233,1761425438782,-500.0,0.00033966,9]
[392393234,1761425438791,-500.0,0.00033966,9]
[392393235,1761425438799,-500.0,0.00033966,9]
[392393236,1761425438808,-553.68,0.00033966,9]
[392393237,1761425438818,-500.0,0.00033966,9]
[392393238,1761425438827,-500.0,0.00033966,9]
[392393239,1761425438836,-500.0,0.00033966,9]
[392393240,1761425438845,-500.0,0.00033966,9]
[392393241,1761425438855,-448.00884947,0.00033966,9]
[392393242,1761425438864,-500.0,0.00033966,9]
[392393243,1761425438874,-500.0,0.00033966,9]
[392393244,1761425438884,-500.0,0.00033966,9]
[392393245,1761425438893,-508.56164549,0.00033966,9]
[392393246,1761425438902,-500.0,0.00033966,9]
[392393247,1761425438913,-500.0,0.00033966,9]
[392393248,1761425438923,-500.0,0.00033966,9]
[392393249,1761425438932,-500.0,0.00033966,9]
[392393250,1761425438942,-500.0,0.00033966,9]
[392393251,1761425438952,-500.0,0.00033966,9]
[392393252,1761425438962,-500.0,0.00033966,7]
[392393253,1761425438971,-500.0,0.00033966,9]
[392393254,1761425438982,-601.98,0.00033966,9]
[392393255,1761425438992,-500.0,0.00033966,9]
[392393256,1761425439003,-606.24807535,0.00033966,9]
[392393257,1761425439012,-500.0,0.00033966,9]
[392393258,1761425439022,-500.0,0.00033966,9]
[392393259,1761425439032,-500.0,0.00033966,9]
[392393260,1761425439041,-500.0,0.00033966,9]
[392393261,1761425439051,-500.0,0.00033966,9]
[392393262,1761425439060,-500.0,0.00033966,9]
[392393263,1761425439073,-482.448133,0.00033966,30]
[392393264,1761425439082,-500.0,0.00033966,9]
[392393265,1761425439092,-482.448133,0.00033966,30]
[392393266,1761425439102,-482.448133,0.00033966,30]
[392393267,1761425439111,-500.0,0.00033966,9]
[392393268,1761425439121,-482.448133,0.00033966,30]
[392393269,1761425439131,-580.5,0.00033966,9]
[392393270,1761425439140,-500.0,0.00033966,9]
[392393271,1761425439150,-500.0,0.00033966,9]
[392393272,1761425439160,-500.0,0.00033966,9]
[392393273,1761425439169,-500.0,0.00033966,9]
[392393274,1761425439179,-500.0,0.00033966,9]
[392393275,1761425439188,-511.21476044,0.00033966,9]
[392393276,1761425439197,-500.0,0.00033966,9]
[392393277,1761425439207,-500.0,0.00033966,9]
[392393278,1761425439216,-512.1,0.00033966,9]
[392393279,1761425439226,-500.0,0.00033966,9]
[392393280,1761425439235,-500.0,0.00033966,9]
[392393281,1761425439245,-500.0,0.00033966,9]
[392393282,1761425439253,-500.0,0.00033966,9]
[392393283,1761425439263,-500.0,0.00033966,9]
[392393284,1761425439272,-500.0,0.00033966,9]
[392393285,1761425439281,-500.0,0.00033966,9]
[392393286,1761425439290,-647.33,0.00033966,9]
[392393287,1761425439301,-500.0,0.00033966,9]
[392393288,1761425439310,-500.0,0.00033966,9]
[392393289,1761425439320,-151.0,0.00033966,30]
[392393290,1761425439330,-601.16,0.00033966,9]
[392393291,1761425439340,-500.0,0.00033966,9]
[392393292,1761425439349,-500.0,0.00033966,9]
[392393293,1761425439359,-500.0,0.00033966,9]
[392393294,1761425439368,-500.0,0.00033966,9]
[392393295,1761425439377,-624.17,0.00033966,9]
[392393297,1761425439387,-198.894977,0.00033966,30]
[392393299,1761425439396,-500.0,0.00033966,9]
[392393300,1761425439406,-544.29,0.00033966,9]
[392393301,1761425439415,-615.81036183,0.00033966,9]
[392393302,1761425439425,-500.0,0.00033966,9]
[392393303,1761425439434,-543.66,0.00033966,9]
[392393304,1761425439443,-500.0,0.00033966,9]
[392393305,1761425439454,-500.0,0.00033966,9]
[392393306,1761425439463,-500.0,0.00033966,9]
[392393307,1761425439472,-500.0,0.00033966,9]
[392393308,1761425439482,-1038.04,0.00033966,9]
[392393309,1761425439490,-500.0,0.00033966,9]
[392393310,1761425439499,-156.04324439,0.00033966,9]
[392393311,1761425439508,-500.0,0.00033966,9]
[392393312,1761425439517,-500.0,0.00033966,9]
[392393313,1761425439526,-500.0,0.00033966,9]
[392393314,1761425439535,-500.0,0.00033966,9]
[392393315,1761425439544,-501.56624882,0.00033966,9]
[392393316,1761425439553,-500.0,0.00033966,9]
[392393317,1761425439562,-403.9450098,0.00033966,9]
[392393318,1761425439576,-500.0,0.00033966,9]
[392393319,1761425439585,-254.99023144,0.00033966,9]
[392393320,1761425439594,-500.0,0.00033966,9]
[392393321,1761425439603,-151.0,0.00033966,30]
[392393322,1761425439614,-151.0,0.00033966,30]
[392393323,1761425439623,-500.0,0.00033966,9]
[392393324,1761425439632,-500.0,0.00033966,9]
[392393325,1761425439642,-500.0,0.00033966,9]
[392393326,1761425439651,-501.95,0.00033966,9]
[392393327,1761425439660,-394.83764358,0.00033966,9]
[392393328,1761425439669,-151.0,0.00033966,30]
[392393329,1761425439679,-151.0,0.00033966,30]
[392393330,1761425439688,-151.0,0.00033966,30]
[392393331,1761425439697,-151.0,0.00033966,30]
[392393332,1761425439707,-151.0,0.00033966,30]
[392393333,1761425439716,-151.0,0.00033966,30]
[392393334,1761425439725,-500.0,0.00033966,9]
[392393335,1761425439734,-151.0,0.00033966,30]
[392393336,1761425439743,-151.0,0.00033966,30]
[392393337,1761425439752,-500.0,0.00033966,9]
[392393338,1761425439761,-193.873303,0.00033966,30]
[392393339,1761425439769,-501.58827501,0.00033967,6]
[392393340,1761425439778,-501.35127106,0.00033967,9]
[392393341,1761425439787,-500.0,0.00033967,9]
[392393342,1761425439796,-500.0,0.00033967,9]
[392393343,1761425439805,-500.0,0.00033967,9]
[392393344,1761425439815,-502.60162165,0.00033967,9]
[392393345,1761425439824,-500.0,0.00033967,9]
[392393346,1761425439833,-502.27648629,0.00033967,9]
[392393347,1761425439842,-500.0,0.00033967,9]
[392393348,1761425439851,-401.07657117,0.00033967,9]
[392393349,1761425439860,-168.67450789,0.00033967,9]
[392393350,1761425439869,-500.0,0.00033967,9]
[392393351,1761425439878,-501.70351651,0.00033967,9]
[392393352,1761425439887,-513.4471244,0.00033967,9]
[392393353,1761425439896,-500.0,0.00033967,9]
[392393354,1761425439905,-500.0,0.00033967,9]
[392393355,1761425439915,-618.80106332,0.00033967,9]
[392393356,1761425439924,-500.0,0.00033967,9]
[392393357,1761425439933,-500.0,0.00033967,9]
[392393358,1761425439942,-500.0,0.00033967,9]
[392393359,1761425439951,-500.0,0.00033967,9]
[392393360,1761425439961,-565.74876408,0.00033967,9]
[392393361,1761425439970,-500.0,0.00033967,9]
[392393362,1761425439981,-500.0,0.00033967,9]
[392393363,1761425439990,-500.0,0.00033967,9]
[392393364,1761425439999,-500.0,0.00033967,9]
[392393365,1761425440009,-500.0,0.00033967,9]
[392393366,1761425440018,-500.0,0.00033967,9]
[392393367,1761425440027,-469.57013772,0.00033967,9]
[392393368,1761425440037,-500.09100597,0.00033967,9]
[392393369,1761425440137,-567.385756,0.00033967,9]
[392393370,1761425440146,-151.667609,0.00033967,9]
[392393372,1761425440155,-152.637139,0.00033967,9]
[392393373,1761425440165,-175.908361,0.00033967,9]
[392393374,1761425440174,-311.37775015,0.00033967,9]
[392393375,1761425440183,-500.0,0.00033967,9]
[392393376,1761425440193,-500.0,0.00033967,9]
[392393377,1761425440202,-910.887729,0.00033967,9]
[392393378,1761425440211,-500.0,0.00033967,9]
[392393379,1761425440220,-500.0,0.00033967,9]
[392393380,1761425440229,-500.0,0.00033967,9]
[392393381,1761425440240,-512.17,0.00033967,9]
[392393382,1761425440250,-500.0,0.00033967,9]
[392393383,1761425440261,-600.0,0.00033967,9]
[392393384,1761425440270,-500.0,0.00033967,9]
[392393385,1761425440281,-500.0,0.00033967,9]
[392393386,1761425440290,-503.96861882,0.00033967,9]
[392393387,1761425440299,-500.0,0.00033967,9]
[392393388,1761425440307,-535.51204105,0.00033967,9]
[392393389,1761425440316,-500.0,0.00033967,9]
[392393390,1761425440325,-500.0,0.00033967,9]
[392393391,1761425440334,-500.0,0.00033967,9]
[392393392,1761425440343,-500.0,0.00033967,9]
[392393393,1761425440352,-500.0,0.00033967,9]
[392393394,1761425440362,-500.0,0.00033967,9]
[392393395,1761425440371,-500.0,0.00033967,9]
[392393396,1761425440380,-500.0,0.00033967,9]
[392393397,1761425440389,-502.39,0.00033967,9]
[392393398,1761425440398,-500.0,0.00033967,9]
[392393399,1761425440406,-500.0,0.00033967,9]
[392393400,1761425440415,-500.0,0.00033967,9]
[392393401,1761425440424,-524.93,0.00033967,9]
[392393402,1761425440433,-500.0,0.00033967,9]
[392393403,1761425440443,-331.9891502,0.00033967,9]
[392393404,1761425440452,-246.70025851,0.00033967,9]
[392393405,1761425440461,-555.59,0.00033967,9]
[392393406,1761425440470,-500.0,0.00033967,9]
[392393407,1761425440480,-567.53,0.00033967,9]
[392393408,1761425440489,-500.0,0.00033967,9]
[392393409,1761425440498,-500.0,0.00033967,9]
[392393410,1761425440507,-500.0,0.00033967,9]
[392393411,1761425440517,-500.0,0.00033967,9]
[392393412,1761425440527,-500.0,0.00033967,9]
[392393413,1761425440536,-587.22057977,0.00033967,9]
[392393414,1761425440545,-540.0,0.00033967,9]
[392393415,1761425440554,-500.0,0.00033967,9]
[392393417,1761425440563,-154.97826,0.00033967,30]
[392393418,1761425440579,-500.0,0.00033967,9]
[392393419,1761425440588,-582.08749072,0.00033967,9]
[392393420,1761425440597,-500.0,0.00033967,9]
[392393421,1761425440607,-500.0,0.00033967,9]
[392393422,1761425440617,-500.0,0.00033967,9]
[392393423,1761425440626,-151.0,0.00033967,30]
[392393424,1761425440635,-151.0,0.00033967,30]
[392393425,1761425440644,-500.0,0.00033967,2]
[392393426,1761425440653,-500.0,0.00033967,9]
[392393427,1761425440662,-500.0,0.00033967,9]
[392393428,1761425440671,-500.0,0.00033967,9]
[392393429,1761425440681,-500.0,0.00033967,9]
[392393430,1761425440692,-500.0,0.00033967,9]
[392393431,1761425440701,-500.0,0.00033967,9]
[392393432,1761425440710,-500.0,0.00033967,9]
[392393433,1761425440719,-501.81266505,0.00033967,9]
[392393434,1761425440728,-500.0,0.00033967,9]
[392393435,1761425440737,-162.91997684,0.00033967,9]
[392393436,1761425440747,-500.0,0.00033967,9]
[392393437,1761425440755,-602.26,0.00033967,9]
[392393438,1761425440764,-500.0,0.00033967,9]
[392393439,1761425440774,-500.0,0.00033967,9]
[392393440,1761425440783,-500.0,0.00033967,9]
[392393441,1761425440791,-534.83246382,0.00033967,9]
[392393442,1761425440800,-500.0,0.00033967,9]
[392393443,1761425440809,-500.0,0.00033967,9]
[392393444,1761425440818,-1103.76,0.00033967,9]
[392393445,1761425440827,-500.0,0.00033967,9]
[392393446,1761425440835,-500.0,0.00033967,9]
[392393447,1761425440844,-500.0,0.00033967,9]
[392393448,1761425440854,-500.0,0.00033967,9]
[392393449,1761425440863,-500.0,0.00033967,9]
[392393450,1761425440872,-300.0,0.00033967,2]
[392393451,1761425440881,-500.0,0.00033967,9]
[392393452,1761425440891,-500.0,0.00033967,9]
[392393453,1761425440900,-793.74,0.00033967,9]
[392393454,1761425440910,-755.77,0.00033967,9]
[392393455,1761425440919,-500.0,0.00033967,9]
[392393456,1761425440928,-500.0,0.00033967,9]
[392393457,1761425440938,-500.0,0.00033967,9]
[392393458,1761425440947,-541.75,0.00033967,9]
[392393459,1761425440956,-677.29,0.00033967,9]
[392393460,1761425440965,-460.76615753,0.00033967,9]
[392393461,1761425440975,-500.0,0.00033967,9]
[392393462,1761425440984,-572.04,0.00033967,9]
[392393463,1761425440993,-500.0,0.00033967,9]
[392393464,1761425441003,-500.0,0.00033967,9]
[392393465,1761425441011,-502.76254837,0.00033967,9]
[392393466,1761425441021,-500.0,0.00033967,9]
[392393467,1761425441030,-482.448133,0.00033967,30]
[392393468,1761425441039,-482.448133,0.00033967,30]
[392393469,1761425441049,-482.448133,0.00033967,30]
[392393470,1761425441059,-500.0,0.00033967,9]
[392393471,1761425441067,-482.448137,0.00033967,30]
[392393472,1761425441077,-568.48,0.00033967,9]
[392393473,1761425441086,-500.0,0.00033967,9]
[392393474,1761425441095,-500.0,0.00033967,9]
[392393475,1761425441105,-500.0,0.00033967,9]
[392393476,1761425441115,-500.0,0.00033967,9]
[392393477,1761425441124,-500.0,0.00033967,3]
[392393478,1761425441133,-500.0,0.00033967,9]
[392393479,1761425441142,-500.0,0.00033967,9]
[392393480,1761425441152,-500.0,0.00033967,9]
[392393481,1761425441160,-500.0,0.00033967,9]
[392393482,1761425441170,-500.0,0.00033967,9]
[392393483,1761425441179,-500.0,0.00033967,9]
[392393484,1761425441189,-500.0,0.00033967,9]
[392393485,1761425441198,-928.1,0.00033967,9]
[392393486,1761425441207,-500.0,0.00033967,9]
[392393487,1761425441215,-480.52931902,0.00033967,9]
[392393488,1761425441225,-500.0,0.00033967,9]
[392393489,1761425441234,-500.0,0.00033967,9]
[392393490,1761425441248,-500.0,0.00033967,9]
[392393491,1761425441257,-500.0,0.00033967,9]
[392393492,1761425441266,-500.0,0.00033967,9]
[392393493,1761425441275,-500.0,0.00033967,9]
[392393495,1761425441285,-712.0,0.00033967,2]
[392393496,1761425441294,-500.0,0.00033967,9]
[392393497,1761425441304,-548.9,0.00033967,9]
[392393498,1761425441313,-500.0,0.00033967,9]
[392393499,1761425441323,-500.0,0.00033967,9]
[392393500,1761425441331,-612.62,0.00033967,9]
[392393501,1761425441343,-500.0,0.00033967,9]
[392393502,1761425441352,-500.0,0.00033967,9]
[392393503,1761425441362,-500.0,0.00033967,9]
[392393504,1761425441373,-500.0,0.00033967,9]
[392393505,1761425441382,-620.95,0.00033967,9]
[392393506,1761425441391,-500.0,0.00033967,9]
[392393507,1761425441400,-500.0,0.00033967,7]
[392393508,1761425441409,-500.0,0.00033967,9]
[392393509,1761425441419,-500.0,0.00033967,9]
[392393510,1761425441428,-500.0,0.00033967,9]
[392393511,1761425441437,-645.57606024,0.00033967,9]
[392393512,1761425441447,-500.0,0.00033967,9]
[392393513,1761425441456,-500.0,0.00033967,9]
[392393514,1761425441465,-267.90798227,0.00033967,9]
[392393515,1761425441475,-500.0,0.00033967,9]
[392393516,1761425441484,-500.0,0.00033967,9]
[392393517,1761425441493,-500.0,0.00033967,9]
[392393518,1761425441503,-627.18,0.00033967,9]
[392393519,1761425441512,-589.98465346,0.00033967,9]
[392393520,1761425441521,-500.0,0.00033967,9]
[392393521,1761425441530,-500.0,0.00033967,9]
[392393522,1761425441539,-500.0,0.00033967,9]
[392393523,1761425441549,-500.0,0.00033967,9]
[392393524,1761425441558,-500.0,0.00033967,9]
[392393525,1761425441570,-500.0,0.00033967,9]
[392393526,1761425441579,-500.0,0.00033967,9]
[392393527,1761425441589,-500.0,0.00033967,9]
[392393528,1761425441599,-500.0,0.00033967,9]
[392393529,1761425441608,-330.25732926,0.00033968,9]
[392393530,1761425441705,-500.0,0.00033968,9]
[392393531,1761425441714,-500.87975753,0.00033968,9]
[392393532,1761425441723,-508.29060419,0.00033968,9]
[392393533,1761425441733,-500.0,0.00033968,9]
[392393534,1761425441741,-502.1479336,0.00033968,9]
[392393535,1761425441750,-502.24069745,0.00033968,9]
[392393536,1761425441759,-501.51965773,0.00033968,9]
[392393537,1761425441768,-502.12349623,0.00033968,9]
[392393538,1761425441778,-500.0,0.00033968,9]
[392393539,1761425441787,-500.0,0.00033968,9]
[392393540,1761425441795,-500.0,0.00033968,9]
[392393541,1761425441804,-500.0,0.00033968,9]
[392393542,1761425441813,-500.0,0.00033968,9]
[392393543,1761425441822,-550.11,0.00033968,9]
[392393544,1761425441832,-500.0,0.00033968,9]
[392393545,1761425441841,-500.0,0.00033968,9]
[392393546,1761425441851,-781.72,0.00033968,9]
[392393547,1761425441860,-500.0,0.00033968,9]
[392393548,1761425441870,-625.09,0.00033968,9]
[392393549,1761425441883,-500.0,0.00033968,9]
[392393550,1761425441892,-500.0,0.00033968,9]
[392393551,1761425441901,-500.0,0.00033968,9]
[392393552,1761425441910,-500.0,0.00033968,9]
[392393553,1761425441919,-500.0,0.00033968,9]
[392393554,1761425441928,-500.0,0.00033968,9]
[392393555,1761425441937,-500.0,0.00033968,9]
[392393556,1761425441947,-500.0,0.00033968,9]
[392393557,1761425441956,-500.0,0.00033968,9]
[392393558,1761425441966,-500.0,0.00033968,9]
[392393559,1761425441975,-500.0,0.00033968,9]
[392393560,1761425441984,-500.0,0.00033968,9]
[392393561,1761425441993,-500.0,0.00033968,9]
[392393562,1761425442002,-500.0,0.00033968,9]
[392393563,1761425442012,-500.0,0.00033968,9]
[392393564,1761425442021,-500.0,0.00033968,9]
[392393565,1761425442030,-500.0,0.00033968,9]
[392393566,1761425442039,-500.0,0.00033968,9]
[392393567,1761425442048,-500.0,0.00033968,9]
[392393568,1761425442058,-500.0,0.00033968,9]
[392393569,1761425442067,-500.0,0.00033968,9]
[392393570,1761425442077,-500.0,0.00033968,9]
[392393571,1761425442086,-500.0,0.00033968,9]
[392393572,1761425442095,-500.0,0.00033968,9]
[392393573,1761425442104,-500.0,0.00033968,9]
[392393574,1761425442113,-500.0,0.00033968,9]
[392393575,1761425442122,-500.0,0.00033968,9]
[392393576,1761425442133,-500.0,0.00033968,9]
[392393578,1761425442143,-500.0,0.00033968,9]
[392393579,1761425442154,-816.06,0.00033968,9]
[392393580,1761425442164,-500.0,0.00033968,9]
[392393581,1761425442173,-500.0,0.00033968,9]
[392393582,1761425442183,-500.0,0.00033968,9]
[392393584,1761425442192,-500.0,0.00033968,9]
[392393586,1761425442201,-563.33,0.00033968,9]
[392393587,1761425442210,-500.0,0.00033968,9]
[392393588,1761425442219,-174.19,0.00033968,14]
[392393589,1761425442228,-500.0,0.00033968,9]
[392393590,1761425442237,-500.0,0.00033968,9]
[392393591,1761425442246,-500.0,0.00033968,9]
[392393592,1761425442255,-500.0,0.00033968,9]
[392393593,1761425442266,-500.0,0.00033968,9]
[392393594,1761425442276,-500.0,0.00033968,9]
[392393595,1761425442286,-500.0,0.00033968,9]
[392393596,1761425442295,-500.0,0.00033968,9]
[392393597,1761425442305,-530.99127284,0.00033968,9]
[392393598,1761425442315,-361.72160013,0.00033968,9]
[392393599,1761425442325,-500.0,0.00033968,9]
[392393600,1761425442336,-500.0,0.00033968,9]
[392393601,1761425442345,-500.0,0.00033968,9]
[392393602,1761425442354,-500.0,0.00033968,9]
[392393604,1761425442364,-500.0,0.00033968,9]
[392393605,1761425442374,-516.622223,0.00033968,9]
[392393606,1761425442383,-500.0,0.00033968,9]
[392393607,1761425442392,-500.0,0.00033968,9]
[392393608,1761425442401,-582.44458999,0.00033968,9]
[392393609,1761425442410,-500.0,0.00033968,9]
[392393610,1761425442419,-500.0,0.00033968,9]
[392393611,1761425442427,-501.23872758,0.00033968,9]
[392393612,1761425442436,-506.96877417,0.00033968,9]
[392393613,1761425442445,-504.19465344,0.00033968,9]
[392393614,1761425442454,-500.0,0.00033968,9]
[392393615,1761425442464,-327.90484999,0.00033968,9]
[392393616,1761425442474,-515.46016711,0.00033968,9]
[392393617,1761425442484,-500.0,0.00033968,9]
[392393618,1761425442493,-500.0,0.00033968,9]
[392393619,1761425442502,-519.07396254,0.00033968,9]
[392393620,1761425442511,-505.0281922,0.00033968,9]
[392393621,1761425442521,-500.0,0.00033968,9]
[392393622,1761425442530,-506.13856881,0.00033968,9]
[392393623,1761425442539,-500.0,0.00033968,9]
[392393624,1761425442548,-524.99993497,0.00033968,9]
[392393625,1761425442557,-518.54906823,0.00033968,9]
[392393626,1761425442566,-508.79995285,0.00033968,9]
[392393627,1761425442579,-500.51218429,0.00033968,9]
[392393628,1761425442589,-501.93985702,0.00033968,9]
[392393629,1761425442598,-503.1163147,0.00033968,9]
[392393630,1761425442608,-500.0,0.00033968,9]
[392393631,1761425442617,-648.01,0.00033968,9]
[392393632,1761425442626,-500.0,0.00033968,9]
[392393633,1761425442636,-500.0,0.00033968,9]
[392393634,1761425442646,-3996.79,0.00033968,2]
[392393635,1761425442655,-510.7935224,0.00033968,9]
[392393636,1761425442664,-583.98656744,0.00033968,9]
[392393637,1761425442672,-500.0,0.00033968,9]
[392393638,1761425442681,-500.0,0.00033968,9]
[392393639,1761425442690,-518.22880741,0.00033968,9]
[392393640,1761425442699,-500.0,0.00033968,9]
[392393641,1761425442708,-500.0,0.00033968,9]
[392393642,1761425442717,-247.68501289,0.00033968,9]
[392393643,1761425442727,-500.0,0.00033968,9]
[392393644,1761425442736,-500.0,0.00033968,9]
[392393645,1761425442745,-507.08501783,0.00033968,9]
[392393646,1761425442754,-500.0,0.00033968,9]
[392393647,1761425442763,-500.0,0.00033968,9]
[392393648,1761425442772,-500.0,0.00033968,9]
[392393649,1761425442781,-539.94464168,0.00033968,9]
[392393650,1761425442790,-500.0,0.00033968,9]
[392393651,1761425442799,-500.0,0.00033968,9]
[392393652,1761425442809,-500.0,0.00033968,9]
[392393653,1761425442818,-500.0,0.00033968,2]
[392393654,1761425442828,-500.0,0.00033968,9]
[392393655,1761425442837,-513.59924735,0.00033968,9]
[392393656,1761425442846,-500.0,0.00033968,9]
[392393657,1761425442855,-500.0,0.00033968,9]
[392393658,1761425442864,-546.95,0.00033968,9]
[392393659,1761425442873,-699.1,0.00033968,2]
[392393660,1761425442882,-500.0,0.00033968,9]
[392393661,1761425442891,-502.44349305,0.00033968,9]
[392393662,1761425442900,-500.0,0.00033968,9]
[392393663,1761425442909,-501.60914196,0.00033968,9]
[392393664,1761425442918,-500.0,0.00033968,9]
[392393665,1761425442927,-507.30579797,0.00033968,9]
[392393666,1761425442936,-500.0,0.00033968,9]
[392393667,1761425442945,-511.57608666,0.00033968,9]
[392393668,1761425442954,-500.0,0.00033968,9]
[392393669,1761425442963,-527.81,0.00033968,9]
[392393670,1761425442972,-535.0331089,0.00033968,9]
[392393671,1761425442983,-624.0834503,0.00033968,9]
[392393672,1761425442992,-534.68,0.00033968,9]
[392393673,1761425443001,-519.94084557,0.00033968,9]
[392393674,1761425443012,-500.0,0.00033968,9]
[392393675,1761425443022,-500.0,0.00033968,9]
[392393676,1761425443031,-500.0,0.00033968,9]
[392393677,1761425443040,-501.13593369,0.00033968,9]
[392393678,1761425443049,-500.0,0.00033968,2]
[392393679,1761425443142,-39.27703694,0.00033968,9]
[392393680,1761425443403,-475.22328385,0.00033968,9]
[392393681,1761425443412,-500.0,0.00033968,9]
[392393682,1761425443421,-46.27442075,0.00033968,9]
[392393683,1761425443746,-150.0,0.00033588,3]
[392393684,1761425443755,-151.0,0.00033844,30]
[392393685,1761425443764,-269.0958,0.00033858,2]
[392393686,1761425443773,-151.0,0.00033958,30]
[392393687,1761425443782,-151.0,0.00033965,30]
[392393688,1761425443791,-139.18229267,0.00033965,2]
[392393689,1761425443805,-360.81770733,0.00033965,2]
[392393690,1761425443815,-151.0,0.00033965,30]
[392393691,1761425443823,-151.0,0.00033966,30]
[392393692,1761425443832,-151.0,0.00033966,30]
[392393693,1761425443841,-458.92509129,0.00033968,9]
[392393694,1761425443850,-512.21102492,0.00033968,9]
[392393695,1761425443860,-500.0,0.00033968,9]
[392393696,1761425443869,-512.59321847,0.00033968,9]
[392393697,1761425443878,-503.45587913,0.00033968,9]
[392393698,1761425443888,-500.0,0.00033968,9]
[392393699,1761425443897,-500.0,0.00033968,9]
[392393700,1761425443906,-500.64927278,0.00033968,9]
[392393701,1761425443916,-504.38948089,0.00033968,9]
[392393702,1761425443925,-150.28777693,0.00033968,9]
[392393703,1761425443936,-349.71222307,0.00033968,9]
[392393704,1761425443946,-270.16037738,0.00033968,9]
[392393705,1761425443956,-229.83962262,0.00033968,9]
[392393706,1761425443966,-516.91401529,0.00033968,9]
[392393707,1761425443975,-517.91894622,0.00033968,9]
[392393708,1761425443985,-500.0,0.00033968,9]
[392393709,1761425443994,-503.32852943,0.00033968,9]
[392393710,1761425444003,-500.0,0.00033968,9]
[392393711,1761425444013,-501.78565197,0.00033968,10]
[392393712,1761425444024,-500.0,0.00033968,9]
[392393713,1761425444034,-502.52664719,0.00033968,9]
[392393714,1761425444142,-477.96270842,0.00033968,9]
[392393715,1761425444151,-515.99642775,0.00033968,9]
[392393716,1761425444160,-500.77819758,0.00033968,9]
[392393717,1761425444169,-500.0,0.00033968,9]
[392393718,1761425444178,-500.0,0.00033968,9]
[392393719,1761425444187,-500.0,0.00033968,9]
[392393720,1761425444196,-500.0,0.00033968,9]
[392393721,1761425444205,-500.0,0.00033968,9]
[392393722,1761425444214,-300.0,0.00033968,2]
[392393723,1761425444223,-420.60343679,0.00033968,9]